Cogmind - Beta 11 @@@ ROGUE MODE // 2022.04.03 @ 12:59:42 Player: Red Box Result: Destroyed by D-53 Grenadier with Mini Grenade Launcher Performance ------------- Evolutions (0) 0 Regions Visited (2) 400 Robots Destroyed (20) 100 Value Destroyed (466) 466 Prototype IDs (2) 40 Alien Tech Used (0) 0 Bonus (35) 35 TOTAL SCORE: 1041 Bonus ------- Follower Combat Kills 35 Cogmind --------- Core Integrity 0/250 Matter 300/300 Energy 100/100 System Corruption 0% Temperature Cool (0) Movement Core (400) Ox7 Location -10/Mines Parts ------- > --- POWER (1) -------- (None) > --- PROPULSION (2) --- (None) > --- UTILITY (2) ------ Improved Heat Sink Large Storage Unit > --- WEAPON (2) ------- Medium Laser > --- INVENTORY (15) --- Light Treads Light Treads Improved Treads Improved Treads Improved Treads Improved Treads Wheel Cooling System High-capacity Storage Unit Improved Terrain Scanner EM Pulse Gun Light Cannon Rocket Launcher Rocket Launcher Shock Trap Peak State ------------ > --- POWER ------------ Ion Engine > --- PROPULSION ------- Wheel Compact Wheel > --- UTILITY ---------- Improved Heat Sink Large Storage Unit > --- WEAPON ----------- Medium Laser Medium Laser > --- INVENTORY -------- Light Treads Light Treads Improved Treads Improved Treads Improved Treads Improved Treads Wheel Cooling System High-capacity Storage Unit Improved Terrain Scanner EM Pulse Gun Light Cannon Rocket Launcher Rocket Launcher Shock Trap [Rating: 11] Favorites ----------- Power Ion Engine Engine Ion Engine Propulsion Aluminum Leg Leg Aluminum Leg Wheel Wheel Utility Cooling System Device Cooling System Storage Large Storage Unit Weapon Medium Laser Energy Gun Medium Laser Ballistic Cannon Light Cannon Build | -11 -10 -10 ------- Run | Scr Mat Min Slots Evolved . | . . . Power . | . . . Propulsion . | . . . Utility . | . . . Weapon . | . . . Parts Attached 19 | 8 10 1 Power 1 | 1 . . Engine 1 | 1 . . Core . | . . . Reactor . | . . . Propulsion 5 | 2 3 . Treads . | . . . Leg 3 | 2 1 . Wheel 2 | . 2 . Hover . | . . . Flight . | . . . Utility 6 | 2 3 1 Device 3 | 1 1 1 Storage 3 | 1 2 . Processor . | . . . Hackware . | . . . Protection . | . . . Artifact . | . . . Weapon 7 | 3 4 . Energy Gun 6 | 3 3 . Energy Cannon . | . . . Ballistic Gun . | . . . Ballistic Cannon 1 | . 1 . Launcher . | . . . Special Weapon . | . . . Impact Weapon . | . . . Slashing Weapon . | . . . Piercing Weapon . | . . . Special Melee Weapon . | . . . Unidentified Prototypes . | . . . Parts Lost 4 | . . 4 Power 1 | . . 1 Propulsion 2 | . . 2 Utility . | . . . Weapon 1 | . . 1 Highest Loss Streak 4 | . . 4 To Critical Strikes . | . . . Average Slot Usage (%) 99 | . 99 97 Engine 13 | . 14 12 Leg 11 | . 15 . Wheel 16 | . 12 27 Device 14 | . 14 14 Storage 14 | . 14 14 Energy Gun 27 | . 27 27 Naked Turns . | . . . Heaviest Build 32 | 14 32 31 Greatest Support 26 | 20 26 26 Greatest Overweight (x) 7 | . 1 7 Average Overweight (x) . | . . . Largest Inventory Capacity 15 | 8 15 15 Average Capacity 12 | 7 11 15 Most Carried 15 | 7 15 15 Average Carried 9 | 4 8 14 Final Capacity 15 | 8 15 15 Final Carried 15 | 7 14 15 Class Distribution -------------------- 100% | Mutant Dominant Class ---------------- Mutant | -10/Materials Mutant | -10/Mines Resources | -11 -10 -10 ----------- Run | Scr Mat Min Matter Collected 406 | 280 116 10 Remotely . | . . . Salvage Created 699 | 90 561 48 Parts 45 | 4 39 2 Haulers Intercepted 2 | . 2 . Recyclers Shooed . | . . . Parts Field Recycled . | . . . Retrieved Matter . | . . . Parts Self-Destructed . | . . . Prevented . | . . . Kills | -11 -10 -10 ------- Run | Scr Mat Min Combat Hostiles Destroyed 14 | . 13 1 Guns 13 | . 12 1 Cannons 1 | . 1 . Classes Destroyed 6 | 2 4 . Tunneler 1 | 1 . . Hauler 2 | . 2 . Recycler 1 | 1 . . Watcher 2 | . 2 . Swarmer 3 | . 3 . Grunt 11 | . 10 1 Best Kill Streak 4 | 2 4 1 Combat Bots Only 3 | . 3 1 Max Kills in Single Turn 1 | 1 1 1 Gunslinging . | . . . Exploded . | . . . Melee . | . . . Uniques/NPCs Destroyed . | . . . Combat | -11 -10 -10 -------- Run | Scr Mat Min Damage Taken 668 | . 329 339 Core 253 | . 104 149 Absorbed by Shields . | . . . Regen/Repaired (Parts) 48 | . 48 . Core Remaining (%) 100 | 100 . . Volleys Fired 52 | 4 45 3 Largest 2 | 2 2 2 Hottest 100 | 90 100 100 Shots Fired 104 | 8 90 6 Gun 100 | 8 86 6 Cannon 4 | . 4 . Launcher . | . . . Special . | . . . Kinetic 4 | . 4 . Thermal 100 | 8 86 6 Explosive . | . . . Electromagnetic . | . . . Robot Hit Streak 16 | 6 16 2 Robot Miss Streak 2 | 1 2 2 Penetration Max . | . . . Secondary Targets . | . . . Shots Hit Robots 74 | 6 65 3 Core Hits 34 | 3 30 1 Critical Kills . | . . . Critical Parts Destroyed . | . . . Critical Strikes 8 | . 8 . Burn 8 | . 8 . Melee Attacks . | . . . Impact . | . . . Slashing . | . . . Piercing . | . . . Sneak Attacks . | . . . Combat Hostiles . | . . . Follow-up Attacks . | . . . Damage Inflicted 949 | 71 838 40 Guns 913 | 71 802 40 Cannons 36 | . 36 . Explosions . | . . . Melee . | . . . Ramming . | . . . Kinetic 36 | . 36 . Thermal 913 | 71 802 40 Explosive . | . . . Electromagnetic . | . . . Impact . | . . . Slashing . | . . . Piercing . | . . . Highest Corruption . | . . . Average Corruption . | . . . Corruption Purged . | . . . Corruption Blocked . | . . . Overload Shots . | . . . Overflow Damage . | . . . Projectiles . | . . . Explosions . | . . . Melee . | . . . Knockbacks 1 | . 1 . Impact . | . . . Kinetic 1 | . 1 . Secondary . | . . . Self-Inflicted Damage . | . . . Shots . | . . . Rammed . | . . . Targets Rammed . | . . . Kicked . | . . . Crushed . | . . . Highest Temperature 102 | 90 102 . Average Temperature 44 | 41 46 . Received Heat Transfer 249 | . 198 51 Siege Activations . | . . . Robots Corrupted . | . . . Combat Hostiles . | . . . Parts Fried . | . . . Impact Corruptions . | . . . Robots Melted 1 | . 1 . Combat Hostiles . | . . . Parts Melted 12 | . 12 . Heat Transferred 3257 | 186 2960 111 Parts Sabotaged . | . . . Parts Stolen . | . . . Parts Stripped . | . . . Power Chain Reactions . | . . . Missiles Intercepted . | . . . Alert | -11 -10 -10 ------- Run | Scr Mat Min Peak Influence 253 | 10 253 125 Initial 64 | . 6 64 Average 107 | 3 120 89 Maximum Alert Level 1 | . 1 . Low Security (%) 93 | 100 90 100 Level 1 6 | . 9 . Level 2 . | . . . Level 3 . | . . . Level 4 . | . . . Level 5 . | . . . High Security . | . . . Max Security . | . . . Squads Dispatched 3 | . 3 . Investigation 2 | . 2 . Extermination . | . . . Reinforcement 1 | . 1 . Assault . | . . . Garrison . | . . . Intercept . | . . . Searches Triggered . | . . . Construction Impeded . | . . . Haulers Reinforced . | . . . Active Scanning Responses . | . . . Cargo Convoy Interrupts . | . . . Stealth | -11 -10 -10 --------- Run | Scr Mat Min Distress Signals 1 | . 1 . Communications Jammed . | . . . Distress Signals . | . . . Times Spotted 46 | . 28 18 Peak Tracking Total 16 | . 4 16 Tactical Retreats 4 | . 3 1 Traps | -11 -10 -10 ------- Run | Scr Mat Min Traps Triggered 1 | . 1 . Indirectly . | . . . Trap Hack Attempts . | . . . Triggered . | . . . Disarmed 3 | . 3 . Reprogrammed . | . . . Reused . | . . . Traps Extracted . | . . . Installed . | . . . Triggered . | . . . Most Traps Carried 1 | . . 1 Machines | -11 -10 -10 ---------- Run | Scr Mat Min Machines Disabled . | . . . Max in Single Turn . | . . . Machines Sabotaged . | . . . Garrisons Compromised . | . . . Overloaded Fab Kills . | . . . Hacking | -11 -10 -10 --------- Run | Scr Mat Min Machines Accessed 9 | . 9 . Terminals 6 | . 6 . Fabricators . | . . . Repair Stations 1 | . 1 . Recycling Units 2 | . 2 . Scanalyzers . | . . . Garrison Access . | . . . Total Hacks 28 | . 28 . Successful 15 | . 15 . Failed 12 | . 12 . Catastrophic . | . . . Database Lockouts 1 | . 1 . Manual 15 | . 15 . Terminals 19 | . 19 . Fabricators . | . . . Repair Stations 3 | . 3 . Recycling Units 6 | . 6 . Scanalyzers . | . . . Garrison Access . | . . . Terminal Hacks 7 | . 7 . Robot Analysis 1 | . 1 . Prototype ID Bank 1 | . 1 . Alert Level 1 | . 1 . Locate Traps 2 | . 2 . Disarm Traps 1 | . 1 . Hauler Manifests 1 | . 1 . Fabricator Hacks . | . . . Repair Station Hacks 2 | . 2 . Scan Component 1 | . 1 . Repair 1 | . 1 . Recycling Unit Hacks 1 | . 1 . Retrieve Components 1 | . 1 . Scanalyzer . | . . . Garrison Access Hacks . | . . . Unauthorized Hacks 5 | . 5 . Terminals 4 | . 4 . Botnet 3 | . 3 . Operators 1 | . 1 . Fabricators . | . . . Repair Stations . | . . . Recycling Units 1 | . 1 . Reject 1 | . 1 . Scanalyzers . | . . . Garrison Access . | . . . Data Cores Recovered . | . . . Used . | . . . Hacking Detections 9 | . 9 . Full Trace Events 1 | . 1 . Feedback Events . | . . . Feedback Blocked . | . . . Robot Schematics Acquired . | . . . Robots Built . | . . . Authchips . | . . . Time . | . . . Total Robot Build Rating . | . . . Part Schematics Acquired . | . . . Parts Built . | . . . Authchips . | . . . Time . | . . . Total Part Build Rating . | . . . Parts Repaired 1 | . 1 . Time 26 | . 26 . Parts Recycled . | . . . Recycled Matter . | . . . Retrieved Matter . | . . . Retrieved Components 9 | . 9 . Parts Scanalyzed . | . . . Part Schematics Acquired . | . . . Parts Damaged . | . . . Bothacking | -11 -10 -10 ------------ Run | Scr Mat Min Used RIF Installer . | . . . Robots Hacked . | . . . Non-combat . | . . . Combat . | . . . Robot Hacks Applied . | . . . Relay Couplers Released . | . . . Fabnet Peak Effective % . | . . . Robots Rewired . | . . . Allies Hacked . | . . . Hacks Repelled . | . . . Allies | -11 -10 -10 -------- Run | Scr Mat Min Total Allies 3 | . . 3 Largest Group 3 | . . 3 Highest-Rated Group 80 | . . 80 Highest-Rated Ally 31 | . . 31 Total Orders . | . . . Ally Attacks 21 | . . 21 Total Damage 335 | . . 335 Kills 6 | . . 6 Allies Corrupted . | . . . Allies Melted . | . . . Intel | -11 -10 -10 ------- Run | Scr Mat Min Robot Analysis Total 1 | . 1 . Derelict Logs Recovered 1 | . . 1 Drone Launches . | . . . Drone Recoveries . | . . . Exploration | -11 -10 -10 ------------- Run | Scr Mat Min Turns Passed 1630 | 82 1149 399 Spaces Moved 1180 | 48 803 329 Core 8 | 7 . 1 Treads . | . . . Legs 398 | 41 357 . Wheels 774 | . 446 328 Hover . | . . . Flight . | . . . Fastest Speed 50 | 50 105 90 Average Speed 112 | 109 115 104 Slowest Speed 400 | 120 190 400 Overloaded Moves . | . . . Propulsion Burnouts . | . . . Robots Hopped . | . . . Cave-ins Triggered . | . . . Exploration Rate (%) 52 | 3 94 61 Regions Visited 2 Branch Regions 1 Pre-discovered Areas 1 | . . 1 Known Exits Taken . | . . . Unknown Exits Taken 2 | 1 1 . Scrap Searched 1 | . . 1 Spaces Dug . | . . . Terrain Destroyed . | . . . Melee . | . . . Projectile . | . . . AOE . | . . . Terrain Rammed . | . . . Walls Destroyed . | . . . Machines Disabled . | . . . Actions | -11 -10 -10 --------- Run | Scr Mat Min Total 1381 | 66 935 380 Wait 104 | . 59 45 Move 1178 | 47 802 329 Hop . | . . . Pick Up 18 | 6 11 1 Fast Attach 10 | 8 1 1 Attach 1 | . 1 . Detach 1 | 1 . . Swap 8 | . 8 . Drop 9 | . 8 1 Fire 52 | 4 45 3 Melee . | . . . Ram . | . . . Kick . | . . . Crush . | . . . Escape Stasis . | . . . Rewire . | . . . Trap . | . . . Miscellaneous . | . . . Route ------- -11/Scrapyard -10/Materials (discovered 5 exits: [*Mat x3] / [*Min x2]) -10/Mines (discovered 2 exits: [*Mat x2]) History --------- Turn | Location | Event 3 | -11/Scrapyard | Discovered new exit (range 15) 83 | -11/Scrapyard | Entered Materials 306 | -10/Materials | Build established: Mutant 436 | -10/Materials | Discovered new exit (range 9) 650 | -10/Materials | Discovered new exit (range 14) 804 | -10/Materials | Repaired Med. Laser 804 | -10/Materials | Discovered new exit (range 3) 957 | -10/Materials | Central database locked down 986 | -10/Materials | Discovered new exit (range 16) 1071 | -10/Materials | Discovered new exit (range 12) 1232 | -10/Materials | Entered Mines 1394 | -10/Mines | Discovered new exit (range 4) 1414 | -10/Mines | Found a hidden stash of uninstalled traps 1429 | -10/Mines | Discovered new exit (range 8) 1448 | -10/Mines | Learned location of Zion (-7) 1478 | -10/Mines | Received a Mining Laser from a helpful Derelict 1604 | -10/Mines | Assembled infested the area 1626 | -10/Mines | Core integrity fell below 50% 1631 | -10/Mines | Destroyed by D-53 Grenadier with Mini Grenade Launcher Last Messages --------------- 01530_ TY-J0U(g): "Hehe, this'll put a wrench in their mining defense operations..." 01530_ TY-J0U(g) slips into the shadows. 01604_ ALERT: Infestation in the mines, dispatching Demolisher response squad. 01607_ Searching scrap... 01607_ Found 18 Matter. 01607_ Found Wheel. 01607_ Found ECM Suite. 01607_ Found 33 Matter. 01607_ Ion Engine destroyed. 01615_ 8C-3W9(g) knocked back. 01625_ C-30 ARC bursts open, deploying its payload. 01625_ D-53 Grenadier unfolds itself. 01625_ Med. Laser destroyed. 01626_ U-05 Engineer lays Concrete. 01629_ Wheel destroyed. 01629_ Com. Wheel destroyed. 01630_ U-05 Engineer lays Concrete. 01631_ as-23873 powers down. Map ----- +----------------------------------------------------+ | ?????????????????????????????????## #?????## | | ?????????????????????????????##### ?????# | | ????????????????????????????## ??????# ## | | ????????????????????????????# #??????# #? | | ????????????????????????????# ^ #####??## #? | | ?????????????????????????????# ##??# ## | | ??????????????????????????????# # #?## # | | ???????????????????????????????# # ^ #?# | | ???????????????????????????????### #^ ^ #?# | | ?????????????????????????????????# ^ ## #?##&&& | | ?????????????????????????????????# ##### & | | ?????????????????????????????????####### ### # | | ???????????????????????????????????????#### #?## # | | ??????????????????????????????????????????# #??# | | ??????????????????????????????????????????# #??# # | | ????????????#?????????????????????????????# #### # | | ????????????# ??###########???????????????# | | ????????????# ?## #???????????????# | | ????## ????# ?# #???????????????# #### | | ## ### ## ###??????????????# #?## | | %! ## ######?????????# ### | | % ## #??###????# ## < | | #####= ### ### ##?### ## | | ??????????????# #### #?# ## | | ?????????????## ### #?# ### | | ??????????#### ## @ #?# ####?# | | ???# a!a # #?# #????### | | ??????####### %*## ### ##?# #??????? | | ???????????# #### ##?### ##??# #??????? | | ?????????# #??####?## d #???# #?????## | | ????????# #???????# #??## #???## # | | ????????## #??????## #### ##### | | ?????????## ??????# ## ## | | ??????????# ??????# "%" # | | ??????????## ??????# " # | | ???????????# ????# ## ## | | ???????????## ????# ## """" #######? | | ????????????######????# ###?### """" ##??????? | | ?????????????????????# ??????# """" ##????### | | ????????????????????# ???????# ##???# | | ???????????????????? ???????# ## ##### # | | ?????????????????????????????# #### # | | ?????????????????????????????## ##??# #### # | | ??????????????????????????????####???# ### | | ?????????????????????????????????????# ### | | ?????????????????????????????????????# ##?# | | ?????????????????????????????????????# ##?## | | ?????????????????????????????????????## #?## # | | ??????????????????????????????????????###### # | | ??????????????????????????????????????????# # | +----------------------------------------------------+ Best States ------------- Heat Dissipation 47 Energy Generation 10 Energy Capacity 250 Matter Stores 300 Matter Capacity 300 Sight Range 16 Terrain Scan Range 16 Terrain Scan Density 10 Evasion (%) 55 Item Schematics ----------------- None Robot Schematics ------------------ None Fabricated ------------ Nothing Alien Tech Used ----------------- None Achievements -------------- None Challenges ------------ None Game ------ Seed VariableQuantumBoregun Manual? 0 Play Time 00:14:29 Cumulative 225.6 hours Start 2022.04.03 @ 12:46:58 End 2022.04.03 @ 12:59:42 Sessions 1 Manual Loads 0 Difficulty Rogue Special Mode None Game No. 202 Rogue 202 Adventurer 0 Explorer 0 Win Type - Total 0 Types 0/0/0/0/0/0/0/0/0 Lore% 48 Gallery% 51 Achievement% 39 Wizard Run 0 Options --------- ASCII 0 Keyboard 0 Movement Mouse Keybinds 0 Fullscreen 1 Font 16/SmallcapsGlow Map View 75x55 Tactical HUD 1 Map Filters NONE Filters NONE Steam 1 RUN: 5b5f1d14-1687-4ee2-8f24-9f1b210f7301